bitfinex/quotes_BTCUSD_20241120
["timestamp","ask_amount","ask_price","bid_price","bid_amount"]
[1732083907437,0.37045577,92590.0,92589.0,0.0017098]
[1732083907655,0.3829729,92590.0,92589.0,0.0017098]
[1732083907881,0.3829729,92590.0,92582.0,0.01126915]
[1732083907882,0.27127435,92583.0,92582.0,0.01126915]
[1732083908058,0.01,92581.0,92580.0,0.00171]
[1732083908427,0.2793764,92581.0,92580.0,0.00171]
[1732083908618,0.27919253,92581.0,92580.0,0.00171]
[1732083908905,0.28919253,92581.0,92580.0,0.00171]
[1732083909334,0.36739253,92581.0,92580.0,0.00171]
[1732083909507,0.37739253,92581.0,92580.0,0.00171]
[1732083909931,0.38739253,92581.0,92580.0,0.00171]
[1732083910173,0.04,92580.0,92579.0,0.01127102]
[1732083910385,0.30827751,92580.0,92579.0,0.01127102]
[1732083910579,0.30807399,92580.0,92579.0,0.01127102]
[1732083911006,0.03,92568.0,92567.0,0.0017098]
[1732083911207,0.29959167,92568.0,92567.0,0.0017098]
[1732083911340,0.30138778,92568.0,92567.0,0.0017098]
[1732083911780,0.19335978,92568.0,92567.0,0.0017098]
[1732083911986,0.19606089,92568.0,92567.0,0.0017098]
[1732083913006,0.19335978,92568.0,92567.0,0.0017098]
[1732083913433,0.19606085,92568.0,92567.0,0.0017098]
[1732083914242,0.38648885,92568.0,92567.0,0.0017098]
[1732083914461,0.38378778,92568.0,92567.0,0.0017098]
[1732083914687,0.27575978,92568.0,92567.0,0.0017098]
[1732083915490,0.38378778,92568.0,92567.0,0.0017098]
[1732083915704,0.27575978,92568.0,92567.0,0.0017098]
[1732083916048,0.27575978,92568.0,92567.0,0.0017518]
[1732083916457,0.38378778,92568.0,92567.0,0.0017518]
[1732083917129,0.38355531,92568.0,92567.0,0.0017518]
[1732083918977,0.47721866,92568.0,92567.0,0.0017518]
[1732083919390,0.39355531,92568.0,92567.0,0.0017518]
[1732083936868,0.39132284,92568.0,92567.0,0.0017518]
[1732083937072,0.39332284,92568.0,92567.0,0.0017518]
[1732083940690,0.38332284,92568.0,92567.0,0.0017518]
[1732083942682,0.27529484,92568.0,92567.0,0.0017518]
[1732083943309,0.27529484,92568.0,92567.0,0.1097808]
[1732083944500,0.10643229,92568.0,92567.0,0.1097808]
[1732083944704,0.13379567,92568.0,92567.0,0.1097808]
[1732083945092,0.13579567,92568.0,92567.0,0.1097808]
[1732083945620,0.13309484,92568.0,92567.0,0.1097808]
[1732083945802,0.02403229,92568.0,92567.0,0.1097808]
[1732083946008,0.01153506,92568.0,92567.0,0.1097808]
[1732083946472,0.01153506,92568.0,92567.0,0.19344415]
[1732083946905,0.02153506,92568.0,92567.0,0.19344415]
[1732083947110,0.01153506,92568.0,92567.0,0.19344415]
[1732083947543,0.00953506,92568.0,92567.0,0.19344415]
[1732083948195,0.00953506,92568.0,92567.0,0.23772787]
[1732083948957,0.01153506,92568.0,92567.0,0.23772787]
[1732083950421,0.00953506,92568.0,92567.0,0.23772787]
[1732083950988,0.01153506,92568.0,92567.0,0.23772787]
[1732083952642,0.00953506,92568.0,92567.0,0.23772787]
[1732083953319,0.0463,92579.0,92568.0,0.10825515]
[1732083953320,0.00953506,92569.0,92568.0,0.10825515]
[1732083953536,0.00953506,92569.0,92568.0,0.1919185]
[1732083955133,0.00953506,92569.0,92568.0,0.2919185]
[1732083955980,0.00953506,92584.0,92574.0,0.1]
[1732083956291,0.00953506,92586.0,92585.0,0.108008]
[1732083959668,0.0008549,92590.0,92585.0,0.108008]
[1732083959669,0.0008549,92590.0,92589.0,0.108004]
[1732083959816,0.0008549,92590.0,92589.0,0.208004]
[1732083960189,0.0008549,92590.0,92589.0,0.283404]
[1732083960402,0.0008549,92590.0,92589.0,0.325004]
[1732083960822,0.01,92592.0,92591.0,0.108001]
[1732083961031,0.0017096,92597.0,92596.0,0.3983227]
[1732083961571,0.0017096,92597.0,92596.0,0.39005935]
[1732083963447,0.0017096,92597.0,92596.0,0.283396]
[1732083963652,0.0017096,92597.0,92596.0,0.36705935]
[1732083963802,0.0017096,92597.0,92596.0,0.29165935]
[1732083964412,0.0017096,92597.0,92596.0,0.3983227]
[1732083966012,0.0017096,92597.0,92596.0,0.44262471]
[1732083967161,0.0017096,92597.0,92596.0,0.35896136]
[1732083967392,0.0017096,92597.0,92596.0,0.44262471]
[1732083968149,0.0017096,92597.0,92596.0,0.55168726]
[1732083969021,0.0017096,92597.0,92596.0,0.46802391]
[1732083973726,0.0017096,92597.0,92596.0,0.55168726]
[1732083974382,0.0017096,92597.0,92596.0,0.46802391]
[1732083975201,0.0017096,92597.0,92596.0,0.54302391]
[1732083976628,0.0017096,92597.0,92596.0,0.46802391]
[1732083978072,0.0004,92599.0,92598.0,0.20845794]
[1732083978367,0.05,92599.0,92598.0,0.21015242]
[1732083978597,0.05953506,92599.0,92598.0,0.107993]
[1732083979023,0.06038986,92599.0,92598.0,0.107993]
[1732083979694,0.06038986,92599.0,92598.0,0.207993]
[1732083979915,0.06282926,92599.0,92598.0,0.207993]
[1732083984489,0.06482926,92599.0,92598.0,0.207993]
[1732083984755,0.06913506,92597.0,92596.0,0.14430201]
[1732083984971,0.06913506,92597.0,92596.0,0.25229801]
[1732083984972,0.0715695,92597.0,92596.0,0.25229801]
[1732083985164,0.1509695,92597.0,92596.0,0.14430201]
[1732083986048,0.1509695,92597.0,92596.0,0.04430201]
[1732083986264,0.02153506,92590.0,92574.0,0.12520702]
[1732083986484,0.17929761,92590.0,92584.0,0.108009]
[1732083986710,0.26662532,92590.0,92589.0,0.01297972]
[1732083986931,0.26392499,92590.0,92589.0,0.01297972]
[1732083987377,0.37192799,92590.0,92589.0,0.01297972]
[1732083987998,0.37192799,92590.0,92589.0,0.0017096]
[1732083988630,0.38192799,92590.0,92589.0,0.0017096]
[1732083992247,0.39192799,92590.0,92589.0,0.0017096]
[1732083993004,0.13754906,92580.0,92579.0,0.01127046]
[1732083993203,0.29801252,92580.0,92579.0,0.01127046]
[1732083993402,0.29947763,92580.0,92579.0,0.01127046]
[1732083993607,0.16849985,92569.0,92568.0,0.00022715]
[1732083993830,0.28026336,92569.0,92568.0,0.00022715]
[1732083994040,0.37169044,92569.0,92568.0,0.00022715]
[1732083994237,0.38169044,92569.0,92568.0,0.00022715]
[1732083994452,0.17604591,92560.0,92559.0,0.01127197]
[1732083994721,0.28980982,92560.0,92559.0,0.01127197]
[1732083994919,0.28980982,92560.0,92553.0,0.04660664]
[1732083994920,0.11957406,92559.0,92553.0,0.04660664]
[1732083995126,0.24111081,92559.0,92553.0,0.04660664]
[1732083995343,0.24079781,92559.0,92553.0,0.04660664]
[1732083995546,0.24079781,92559.0,92553.0,0.0017098]
[1732083996480,0.32299781,92559.0,92553.0,0.0017098]
[1732083997868,0.21495881,92559.0,92558.0,0.1097498]
[1732083998072,0.21495881,92559.0,92558.0,0.0017098]
[1732083998524,0.21495881,92559.0,92558.0,0.1097498]
[1732084005228,0.10389626,92559.0,92558.0,0.1097498]
[1732084005586,0.10589626,92559.0,92558.0,0.1097498]
[1732084006613,0.01,92571.0,92558.0,0.1097498]
[1732084006614,0.0032548,92599.0,92582.0,0.108012]
[1732084006821,0.00977285,92593.0,92589.0,0.208004]
[1732084007021,0.0032548,92599.0,92589.0,0.208004]
[1732084007022,0.01062765,92597.0,92596.0,0.207996]
[1732084007331,0.0008548,92597.0,92596.0,0.33320302]
[1732084010747,0.01062765,92597.0,92596.0,0.207996]
[1732084014060,0.01062765,92597.0,92596.0,0.25203218]
[1732084016110,0.01062765,92597.0,92596.0,0.26266018]
[1732084017863,0.01262765,92597.0,92596.0,0.26266018]
[1732084018040,0.01062765,92597.0,92596.0,0.26266018]
[1732084019135,0.01251433,92597.0,92596.0,0.26266018]
[1732084020005,0.01051433,92597.0,92596.0,0.26266018]
[1732084021424,0.01251433,92597.0,92596.0,0.26266018]
[1732084025142,0.01051433,92597.0,92596.0,0.26266018]
[1732084025766,0.01251433,92597.0,92596.0,0.26266018]
[1732084029630,0.12157688,92597.0,92596.0,0.118624]
[1732084029847,0.00977285,92590.0,92589.0,0.2097136]
[1732084030177,0.01177285,92590.0,92589.0,0.2097136]
[1732084030384,0.12306569,92590.0,92589.0,0.2097136]
[1732084030602,0.13260075,92590.0,92589.0,0.1097136]
[1732084030818,0.13260075,92590.0,92589.0,0.15244429]
[1732084036797,0.13060075,92590.0,92589.0,0.15244429]
[1732084037020,0.13260075,92590.0,92589.0,0.15244429]
[1732084037228,0.13345555,92590.0,92589.0,0.15244429]
[1732084037440,0.13145555,92590.0,92589.0,0.15244429]
[1732084037658,0.13345555,92590.0,92589.0,0.15244429]
[1732084038107,0.002,92585.0,92584.0,0.12832276]
[1732084038321,0.002,92585.0,92584.0,0.22832276]
[1732084038542,0.00422448,92585.0,92584.0,0.37617575]
[1732084038770,0.01375954,92585.0,92584.0,0.37617575]
[1732084043762,0.02353239,92585.0,92584.0,0.37617575]
[1732084045857,0.02353239,92585.0,92584.0,0.25096873]
[1732084046076,0.02353239,92585.0,92576.0,0.01126931]
[1732084046077,0.02130791,92577.0,92576.0,0.01126931]
[1732084046281,0.02130791,92577.0,92558.0,0.09762451]
[1732084046282,0.01177285,92565.0,92564.0,0.108033]
[1732084046898,0.09447285,92565.0,92564.0,0.108033]
[1732084047118,0.09247285,92565.0,92564.0,0.12138854]
[1732084047341,0.09468031,92565.0,92564.0,0.12138854]
[1732084047775,0.09468031,92565.0,92564.0,0.108033]
[1732084048020,0.09668031,92565.0,92564.0,0.12138357]
[1732084048232,0.09668031,92565.0,92564.0,0.12138343]
[1732084048681,0.09668031,92565.0,92564.0,0.22138343]
[1732084049114,0.09447285,92565.0,92564.0,0.22309283]
[1732084052617,0.38090246,92565.0,92564.0,0.01505983]
[1732084053023,0.38310451,92565.0,92564.0,0.01505983]
[1732084054768,0.27507251,92565.0,92564.0,0.01505983]
[1732084054968,0.26507251,92565.0,92564.0,0.12309283]
[1732084055600,0.26507251,92565.0,92564.0,0.1097424]
[1732084056210,0.26507251,92565.0,92564.0,0.12307561]
[1732084056423,0.26507251,92565.0,92564.0,0.1097424]
[1732084056424,0.26287046,92565.0,92564.0,0.1097424]
[1732084056788,0.26506611,92565.0,92564.0,0.12307307]
[1732084057423,0.26506611,92565.0,92564.0,0.1097424]
[1732084058031,0.26506611,92565.0,92564.0,0.12307156]
[1732084059063,0.15600356,92565.0,92564.0,0.12307156]
[1732084061242,0.15600356,92565.0,92564.0,0.1097424]
[1732084061376,0.15600356,92565.0,92564.0,0.12306826]
[1732084061582,0.15600356,92565.0,92564.0,0.1097424]
[1732084062839,0.07330356,92565.0,92564.0,0.1097424]
[1732084063398,0.07330356,92565.0,92564.0,0.0017094]
[1732084063399,0.18236611,92565.0,92564.0,0.0017094]
[1732084065125,0.30039811,92565.0,92564.0,0.0017094]
[1732084065333,0.37859811,92565.0,92564.0,0.0017094]
[1732084068630,0.36859811,92565.0,92564.0,0.0017094]
[1732084068847,0.26056611,92565.0,92564.0,0.0017094]
[1732084072170,0.26056611,92565.0,92564.0,0.01503655]
[1732084073992,0.26056611,92565.0,92564.0,0.12306955]
[1732084075067,0.37859811,92565.0,92564.0,0.01503655]
[1732084075282,0.38859811,92565.0,92564.0,0.01503655]
[1732084076994,0.38259811,92565.0,92564.0,0.01503655]
[1732084077614,0.38459811,92565.0,92564.0,0.01503655]
[1732084078026,0.38259811,92565.0,92564.0,0.01503655]
[1732084078661,0.38259811,92565.0,92564.0,0.0017094]
[1732084078865,0.38259811,92565.0,92564.0,0.01506159]
[1732084080491,0.38259811,92565.0,92564.0,0.0017094]
[1732084080892,0.38459811,92565.0,92564.0,0.0017094]
[1732084083168,0.38259811,92565.0,92564.0,0.0017094]
[1732084083792,0.38259811,92565.0,92564.0,0.01506522]
[1732084084361,0.38259811,92565.0,92564.0,0.01506532]
[1732084084616,0.38259811,92565.0,92564.0,0.0017094]
[1732084084770,0.38459811,92565.0,92564.0,0.01506479]
[1732084084975,0.38259811,92565.0,92564.0,0.01506479]
[1732084085188,0.38459811,92565.0,92564.0,0.01506479]
[1732084085382,0.38259811,92565.0,92564.0,0.01506479]
[1732084085770,0.38345291,92565.0,92564.0,0.01506479]
[1732084086353,0.38345291,92565.0,92564.0,0.0017094]
[1732084086588,0.37345291,92565.0,92564.0,0.0017094]
[1732084086762,0.37345291,92565.0,92564.0,0.01506425]
[1732084087540,0.36368006,92565.0,92564.0,0.01506425]
[1732084087745,0.36368006,92565.0,92564.0,0.0017094]
[1732084087746,0.37345291,92565.0,92564.0,0.0017094]
[1732084087974,0.37345291,92565.0,92564.0,0.01506423]
[1732084088174,0.38345291,92565.0,92564.0,0.01506423]
[1732084089061,0.38345291,92565.0,92564.0,0.0017094]
[1732084089226,0.37345291,92565.0,92564.0,0.0017094]
[1732084089428,0.37345291,92565.0,92564.0,0.01506579]
[1732084089633,0.38345291,92565.0,92564.0,0.01506579]
[1732084090184,0.37345291,92565.0,92564.0,0.01506579]
[1732084090394,0.38345291,92565.0,92564.0,0.01506579]
[1732084090805,0.37345291,92565.0,92564.0,0.01506579]
[1732084091022,0.38345291,92565.0,92564.0,0.01506579]
[1732084091235,0.38345291,92565.0,92564.0,0.0017094]
[1732084091460,0.38345291,92565.0,92564.0,0.01506637]
[1732084092351,0.36545291,92565.0,92564.0,0.01506637]
[1732084093049,0.36545291,92565.0,92564.0,0.0017094]
[1732084093249,0.36545291,92565.0,92564.0,0.01506769]
[1732084095907,0.23742091,92565.0,92564.0,0.01506769]
[1732084096112,0.24742091,92565.0,92564.0,0.12310069]
[1732084096316,0.16922091,92565.0,92564.0,0.12310069]
[1732084099180,0.16922091,92565.0,92564.0,0.01506769]
[1732084099613,0.16922091,92565.0,92564.0,0.12310069]
[1732084099802,0.16922091,92565.0,92564.0,0.01506769]
[1732084100002,0.16922091,92565.0,92564.0,0.12310069]
[1732084101657,0.16922091,92565.0,92564.0,0.01506769]
[1732084102019,0.16922091,92565.0,92564.0,0.12310069]
[1732084104019,0.16922091,92565.0,92564.0,0.01506769]
[1732084104020,0.36425291,92565.0,92564.0,0.01506769]
[1732084104227,0.36425291,92565.0,92564.0,0.0017094]
[1732084105550,0.36625291,92565.0,92564.0,0.0017094]
[1732084107544,0.36225291,92565.0,92564.0,0.0017094]
[1732084118287,0.45925494,92565.0,92564.0,0.0017094]
[1732084118495,0.71341059,92565.0,92564.0,0.0017094]
[1732084118748,0.95589882,92565.0,92564.0,0.0017094]
[1732084118959,0.71341059,92565.0,92564.0,0.0017094]
[1732084119077,0.95585655,92565.0,92564.0,0.0017094]
[1732084120172,0.95581878,92565.0,92564.0,0.0017094]
[1732084121215,0.71341059,92565.0,92564.0,0.0017094]
[1732084122259,0.99100252,92565.0,92564.0,0.0017094]
[1732084123848,0.13781785,92554.0,92553.0,0.000229]
[1732084124052,0.2468804,92554.0,92553.0,0.000229]
[1732084124298,0.24929654,92554.0,92553.0,0.000229]
[1732084125420,0.25129654,92554.0,92553.0,0.000229]
[1732084125625,0.24929654,92554.0,92553.0,0.000229]
[1732084128728,0.13782085,92551.0,92550.0,0.494829]
[1732084128961,0.2368834,92551.0,92550.0,0.494829]
[1732084129175,0.2368834,92551.0,92550.0,0.50817337]
[1732084129386,0.2368834,92551.0,92550.0,0.61622237]
[1732084129387,0.1188354,92551.0,92550.0,0.61622237]
[1732084129617,0.1188354,92551.0,92550.0,0.71497079]
[1732084129823,0.1188354,92551.0,92550.0,0.69362237]
[1732084130482,0.2933834,92551.0,92550.0,0.50817337]
[1732084130694,0.3708834,92551.0,92550.0,0.494829]
[1732084130896,0.37529948,92551.0,92550.0,0.494829]
[1732084132195,0.37329948,92551.0,92550.0,0.4965386]
[1732084133051,0.37529948,92551.0,92550.0,0.4965386]
[1732084138308,0.37329948,92551.0,92550.0,0.4965386]
[1732084138524,0.53402204,92551.0,92550.0,0.4965386]
[1732084138755,0.45902204,92551.0,92550.0,0.4965386]
[1732084138974,0.37329948,92551.0,92550.0,0.4965386]
[1732084139197,0.45902204,92551.0,92550.0,0.4965386]
[1732084143654,0.45902204,92551.0,92550.0,0.30793983]
[1732084143860,0.62635139,92551.0,92550.0,0.30793983]
[1732084145389,0.84025139,92551.0,92550.0,0.30793983]
[1732084150611,0.67292204,92551.0,92550.0,0.30793983]
[1732084153701,0.70657527,92551.0,92550.0,0.30793983]
[1732084154343,0.80341943,92551.0,92550.0,0.30793983]
[1732084154555,0.67292204,92551.0,92550.0,0.30793983]
[1732084154974,0.65314919,92551.0,92550.0,0.30793983]
[1732084155182,0.46319948,92551.0,92550.0,0.30793983]
[1732084155409,0.46519948,92551.0,92550.0,0.30793983]
[1732084155880,0.63052883,92551.0,92550.0,0.30793983]
[1732084156091,0.63138383,92551.0,92550.0,0.30793983]
[1732084156308,0.63338383,92551.0,92550.0,0.30793983]
[1732084159773,0.71710639,92551.0,92550.0,0.30793983]
[1732084163392,0.71510639,92551.0,92550.0,0.30793983]
[1732084163961,0.46405448,92551.0,92550.0,0.30793983]
[1732084164529,0.46405448,92551.0,92550.0,0.32129938]
[1732084165402,0.46605448,92551.0,92550.0,0.32129938]
[1732084166066,0.46605448,92551.0,92550.0,0.32130045]
[1732084166281,0.46405448,92551.0,92550.0,0.32130045]
[1732084166486,0.46405448,92551.0,92550.0,0.30793983]
[1732084167576,0.46605448,92551.0,92550.0,0.30793983]
[1732084168004,0.46405448,92551.0,92550.0,0.30793983]
[1732084169280,0.63138383,92551.0,92550.0,0.30793983]
[1732084172100,0.39748383,92551.0,92550.0,0.30793983]
[1732084172320,0.40748383,92551.0,92550.0,0.30793983]
[1732084177721,0.28943583,92551.0,92550.0,0.30793983]
[1732084177946,0.12210648,92551.0,92550.0,0.30793983]
[1732084178153,0.12210648,92551.0,92550.0,0.4293387]
[1732084178912,0.1196904,92551.0,92550.0,0.4293387]
[1732084180425,0.01062785,92551.0,92550.0,0.43715745]
[1732084180629,0.01062785,92551.0,92550.0,0.51595745]
[1732084180869,0.01062785,92551.0,92550.0,0.53731597]
[1732084182486,0.01062785,92551.0,92550.0,0.58040136]
[1732084183769,0.01062785,92551.0,92550.0,0.47234303]
[1732084184205,0.01062785,92551.0,92550.0,0.58039203]
[1732084186771,0.01062785,92551.0,92550.0,0.58039522]
[1732084186980,0.01062785,92551.0,92550.0,0.50159522]
[1732084187357,0.01062785,92551.0,92550.0,0.46689297]
[1732084188227,0.01326735,92551.0,92550.0,0.50159965]
[1732084188673,0.01326735,92551.0,92550.0,0.39355065]
[1732084189300,0.01326735,92551.0,92550.0,0.50159965]
[1732084189860,0.01326735,92551.0,92550.0,0.39355065]
[1732084192352,0.01326735,92551.0,92550.0,0.50159965]
[1732084192771,0.01062785,92551.0,92550.0,0.50159965]
[1732084192973,0.01326695,92551.0,92550.0,0.50159965]
[1732084194440,0.2303775,92551.0,92550.0,0.32746526]
[1732084196313,0.1223295,92551.0,92550.0,0.32746526]
[1732084196799,0.2303775,92551.0,92550.0,0.32746526]
[1732084199273,0.1223295,92551.0,92550.0,0.32746526]
[1732084199485,0.1223295,92551.0,92550.0,0.32749711]
[1732084200830,0.1223295,92551.0,92550.0,0.43554611]
[1732084201505,0.1223295,92551.0,92550.0,0.32749711]
[1732084201718,0.1223295,92551.0,92550.0,0.32750207]
[1732084203069,0.1223295,92551.0,92550.0,0.31550207]
[1732084203510,0.1223295,92551.0,92550.0,0.42355107]
[1732084203733,0.1223295,92551.0,92550.0,0.31550207]
[1732084204861,0.2303775,92551.0,92550.0,0.31550207]
[1732084205073,0.3566775,92551.0,92550.0,0.31550207]
[1732084205340,0.3566775,92551.0,92550.0,0.31550534]
[1732084206019,0.2486295,92551.0,92550.0,0.31550534]
[1732084206972,0.1714295,92551.0,92550.0,0.42355434]
[1732084207182,0.0034941,92551.0,92550.0,0.54655434]
[1732084207403,0.0034941,92551.0,92550.0,1.09430882]
[1732084207631,0.0034941,92551.0,92550.0,1.01934073]
[1732084208111,0.0008549,92554.0,92553.0,0.108046]
[1732084208325,0.0008549,92554.0,92553.0,0.31233589]
[1732084208563,0.0008548,92565.0,92564.0,0.131033]
[1732084208794,0.01062765,92565.0,92564.0,0.16576564]
[1732084209027,0.01062765,92565.0,92564.0,0.16576081]
[1732084209926,0.0008548,92565.0,92564.0,0.16576081]
[1732084210141,0.0008548,92565.0,92564.0,0.26792123]
[1732084210402,0.0008548,92565.0,92564.0,0.34656081]
[1732084211471,0.0008548,92565.0,92564.0,0.44285716]
[1732084211933,0.0008548,92565.0,92564.0,0.34656081]
[1732084212360,0.0008548,92565.0,92564.0,0.4427493]
[1732084212578,0.0008548,92565.0,92564.0,0.34656081]
[1732084213356,0.0008548,92565.0,92564.0,0.44272035]
[1732084213591,0.0008548,92565.0,92564.0,0.48649492]
[1732084213807,0.0008548,92565.0,92564.0,1.0427241]
[1732084214022,0.0008548,92565.0,92564.0,0.98571965]
[1732084214243,0.0008548,92565.0,92564.0,0.74526267]
[1732084214484,0.16732935,92568.0,92567.0,0.231029]
[1732084214703,0.16732935,92568.0,92567.0,0.287072]
[1732084215171,0.16732935,92568.0,92567.0,0.40984724]
[1732084215873,0.16732935,92568.0,92567.0,0.4935698]
[1732084216344,0.16732935,92568.0,92567.0,0.34947937]
[1732084216578,1.50529126,92581.0,92567.0,1.00089062]
[1732084216870,0.0008549,92584.0,92583.0,0.241011]
[1732084217086,0.00977285,92601.0,92596.0,0.107996]
[1732084217306,0.00977285,92601.0,92596.0,0.43316893]
[1732084217520,0.00977285,92601.0,92596.0,0.34944637]
[1732084217746,0.00977285,92615.0,92608.0,0.230982]
[1732084217958,0.00977285,92614.0,92608.0,0.34931616]
[1732084218228,0.00977285,92615.0,92608.0,0.34931616]
[1732084218698,0.00977285,92615.0,92608.0,0.36942406]
[1732084218928,0.00977285,92615.0,92608.0,0.39065146]
[1732084220479,0.00977285,92615.0,92608.0,0.43505708]
[1732084222146,0.00977285,92615.0,92608.0,0.43498854]
[1732084224213,0.00977285,92615.0,92608.0,0.41380332]
[1732084224453,0.00977285,92610.0,92608.0,0.43496562]
[1732084224686,0.00977285,92610.0,92608.0,0.30979018]
[1732084225099,0.00648174,92610.0,92609.0,0.123]
[1732084225304,0.00648174,92610.0,92609.0,0.26538256]
[1732084226638,0.11554429,92610.0,92609.0,0.24238256]
[1732084226844,0.24586224,92610.0,92609.0,0.03440256]
[1732084227052,0.35384124,92610.0,92609.0,0.01324026]
[1732084227265,0.13679969,92610.0,92609.0,0.12122026]
[1732084227903,0.13679969,92610.0,92609.0,0.01324026]
[1732084227904,0.35384124,92610.0,92609.0,0.01324026]
[1732084229245,0.24586224,92610.0,92609.0,0.01324026]
[1732084229670,0.24586224,92610.0,92609.0,0.03440256]
[1732084230114,0.24586224,92610.0,92609.0,0.01324026]
[1732084230339,0.24586224,92610.0,92609.0,0.03440256]
[1732084232229,0.00648174,92608.0,92607.0,0.107983]
[1732084232449,0.00648174,92608.0,92607.0,0.13444043]
[1732084232450,0.11554429,92608.0,92607.0,0.13444043]
[1732084232725,0.11772803,92608.0,92607.0,0.16884323]
[1732084232951,0.11772803,92608.0,92607.0,0.1423858]
[1732084233391,0.11772803,92608.0,92607.0,0.16884323]
[1732084235144,0.11124629,92608.0,92607.0,0.16884323]
[1732084235366,0.11772803,92608.0,92607.0,0.16884323]
[1732084235595,0.11124629,92608.0,92607.0,0.15568294]
[1732084235815,0.00866548,92608.0,92607.0,0.19364174]
[1732084236072,0.00648174,92608.0,92607.0,0.19364174]
[1732084236298,0.00648174,92608.0,92607.0,0.19580117]
[1732084237681,0.00648174,92608.0,92607.0,0.19364174]
[1732084238902,0.00648174,92608.0,92607.0,0.1937422]
[1732084240918,0.00648174,92608.0,92607.0,0.1707422]
[1732084241392,0.35122629,92608.0,92607.0,0.0627592]
[1732084241621,0.24324429,92608.0,92607.0,0.1707422]
[1732084241832,0.24542953,92608.0,92607.0,0.1707422]
[1732084242020,0.24542953,92608.0,92607.0,0.0627592]
[1732084242655,0.22116278,92608.0,92607.0,0.0627592]
[1732084245275,0.43277798,92608.0,92607.0,0.01498064]
[1732084245469,0.43477798,92608.0,92607.0,0.0017096]
[1732084246857,0.35114478,92608.0,92607.0,0.0017096]
[1732084247949,0.02,92597.0,92568.0,0.108028]
[1732084248169,0.41023189,92597.0,92564.0,0.108032]
[1732084248389,0.4932013,92597.0,92570.0,0.108025]
[1732084248622,0.4932013,92597.0,92571.0,0.02132934]
[1732084249070,0.4932013,92597.0,92563.0,0.108033]
[1732084249071,0.1287,92584.0,92557.0,0.01126983]
[1732084249304,0.108023,92573.0,92567.0,0.023]
[1732084249522,0.11123166,92583.0,92569.0,0.023]
[1732084249735,0.11123166,92583.0,92570.0,0.11332603]
[1732084249736,0.00216886,92572.0,92570.0,0.11332603]
[1732084249949,0.10802,92575.0,92571.0,0.01332603]
[1732084250183,0.10906255,92574.0,92572.0,0.01332603]
[1732084250390,0.10906255,92574.0,92559.0,0.108039]
[1732084250391,0.10803,92567.0,92561.0,0.108036]
[1732084250603,0.10906255,92566.0,92563.0,0.108034]
[1732084250816,0.10906255,92566.0,92564.0,0.1133091]
[1732084251029,0.10906255,92566.0,92562.0,0.1]
[1732084251030,0.10906255,92566.0,92565.0,0.0133091]
[1732084251257,0.21709355,92566.0,92565.0,0.0133091]
[1732084251475,0.0808,92573.0,92565.0,0.0133091]
[1732084251734,0.10906255,92572.0,92568.0,0.108028]
[1732084251953,0.10906255,92572.0,92569.0,0.0133091]
[1732084252168,0.10906255,92572.0,92570.0,0.0133091]
[1732084252412,0.10906255,92572.0,92570.0,0.0132575]
[1732084252616,0.10906255,92572.0,92571.0,0.0132575]
[1732084255027,0.10906255,92572.0,92571.0,0.1212825]
[1732084255238,0.10247848,92572.0,92571.0,0.1212825]
[1732084256107,0.10247848,92572.0,92571.0,0.0132575]
[1732084256766,0.10247848,92572.0,92570.0,0.0132575]
[1732084257819,0.10247848,92572.0,92571.0,0.0132575]
[1732084258268,0.10247848,92572.0,92569.0,0.0132575]
[1732084258481,0.10247848,92572.0,92570.0,0.01323565]
[1732084258681,0.10247848,92572.0,92568.0,0.108027]
[1732084258920,0.10247848,92572.0,92569.0,0.01323519]
[1732084259413,0.21050248,92572.0,92571.0,0.0017096]
[1732084260095,0.21050248,92572.0,92571.0,0.01494435]
[1732084260335,0.21050248,92572.0,92571.0,0.0017096]
[1732084260567,0.21050248,92572.0,92571.0,0.01494299]
[1732084263319,0.10247848,92572.0,92571.0,0.01494299]
[1732084264009,0.25840248,92572.0,92571.0,0.01494299]
[1732084264431,0.15037848,92572.0,92571.0,0.0017096]
[1732084265314,0.15037848,92572.0,92571.0,0.01494439]
[1732084265542,0.15037848,92572.0,92571.0,0.0017096]
[1732084265770,0.25840248,92572.0,92571.0,0.0017096]
[1732084266225,0.15037848,92572.0,92571.0,0.0017096]
[1732084266450,0.15246211,92572.0,92571.0,0.0017096]
[1732084267824,0.26048611,92572.0,92571.0,0.0017096]
[1732084268519,0.26048611,92572.0,92571.0,0.01495654]
[1732084268930,0.26048611,92572.0,92571.0,0.02820325]
[1732084270221,0.26048611,92572.0,92571.0,0.01495631]
[1732084271439,0.26048611,92572.0,92571.0,0.0149741]
[1732084271868,0.26048611,92572.0,92571.0,0.0017096]
[1732084272081,0.26048611,92572.0,92571.0,0.01497447]
[1732084272082,0.26219651,92572.0,92571.0,0.01497447]
[1732084275076,0.00379403,92572.0,92571.0,0.16720505]
[1732084275962,0.0017104,92572.0,92571.0,0.16720505]
[1732084276197,0.00376688,92572.0,92571.0,0.16720505]
[1732084276411,0.0017104,92572.0,92571.0,0.16720505]
[1732084276617,0.00376688,92572.0,92571.0,0.16732831]
[1732084276830,0.0017104,92572.0,92571.0,0.16732831]
[1732084281866,0.0017104,92572.0,92571.0,0.10375397]
[1732084282114,0.0017104,92572.0,92571.0,0.21177897]
[1732084283248,1.0017104,92572.0,92571.0,0.21177897]
[1732084283456,1.00376688,92572.0,92571.0,0.21177897]
[1732084284320,1.00376688,92572.0,92571.0,0.03630331]
[1732084284570,1.35195343,92572.0,92571.0,0.03630331]
[1732084286432,1.35195343,92572.0,92571.0,0.01501456]
[1732084288022,1.36195343,92572.0,92571.0,0.01501456]
[1732084288291,1.37195343,92572.0,92571.0,0.01501456]
[1732084288528,1.37195343,92572.0,92571.0,0.0017096]
[1732084291710,1.36195343,92572.0,92571.0,0.0017096]
[1732084291916,1.37195343,92572.0,92571.0,0.0017096]
[1732084301115,1.37395343,92572.0,92571.0,0.0017096]
[1732084301762,1.37195343,92572.0,92571.0,0.0017096]
[1732084314229,1.87195343,92572.0,92571.0,0.0017096]
[1732084314457,1.95566272,92572.0,92571.0,0.0017096]
[1732084314680,1.95766272,92572.0,92571.0,0.0017096]
[1732084315334,0.245948,92551.0,92550.0,0.28075858]
[1732084315576,0.35752982,92551.0,92550.0,0.28075858]
[1732084315779,0.85752982,92551.0,92550.0,0.28075858]
[1732084316055,0.95123911,92551.0,92550.0,0.28075858]
[1732084316322,0.86752982,92551.0,92550.0,0.28075858]
[1732084316521,0.36752982,92551.0,92550.0,0.28075858]
[1732084318570,0.86752982,92551.0,92550.0,0.28075858]
[1732084319684,0.36752982,92551.0,92550.0,0.28075858]
[1732084321852,0.58352982,92551.0,92550.0,0.28075858]
[1732084330018,0.57352982,92551.0,92550.0,0.28075858]
[1732084330242,0.23962982,92551.0,92550.0,0.28075858]
[1732084331626,0.22962982,92551.0,92550.0,0.28075858]
[1732084331886,0.23962982,92551.0,92550.0,0.28075858]
[1732084335617,0.45562982,92551.0,92550.0,0.28075858]
[1732084341688,0.23962982,92551.0,92550.0,0.28075858]
[1732084342396,0.22962982,92551.0,92550.0,0.28075858]